fUST/lending_fUST_20250208
["ID","MTS","AMOUNT","RATE_DAILY","PERIOD"]
[352276885,1739025044558,-500.0,0.00011232,2]
[352276887,1739025044567,-500.0,0.00011232,2]
[352276888,1739025044576,-555.22,0.00011232,2]
[352276890,1739025044586,-500.0,0.00011232,2]
[352276892,1739025044595,-500.0,0.00011232,2]
[352276894,1739025044604,-500.0,0.00011232,2]
[352276896,1739025044613,-1203.67,0.00011232,2]
[352276898,1739025044623,-500.0,0.00011232,2]
[352276900,1739025044631,-500.0,0.00011232,2]
[352276902,1739025044641,-765.9,0.00011232,2]
[352276903,1739025044650,-653.59,0.00011232,2]
[352276905,1739025044659,-500.0,0.00011232,2]
[352276907,1739025044668,-1366.67,0.00011232,2]
[352276909,1739025044677,-14839.54,0.00011232,2]
[352276911,1739025044688,-1359.07,0.00011232,2]
[352276913,1739025044697,-500.0,0.00011232,2]
[352276915,1739025044707,-500.0,0.00011232,2]
[352276917,1739025044716,-672.65,0.00011232,2]
[352276919,1739025044725,-500.0,0.00011232,2]
[352276921,1739025044735,-614.27,0.00011232,2]
[352276923,1739025044744,-2827.57,0.00011232,2]
[352276924,1739025044753,-2885.15,0.00011232,2]
[352276926,1739025044762,-500.0,0.00011232,2]
[352276928,1739025044771,-872.72,0.00011232,2]
[352276930,1739025044781,-1027.41,0.00011232,2]
[352276932,1739025044790,-4038.53,0.00011232,2]
[352276934,1739025044799,-500.0,0.00011232,2]
[352276936,1739025044808,-151.0,0.000113,2]
[352276937,1739025044817,-500.0,0.00011304,2]
[352276939,1739025044827,-511.71832837,0.00011317,2]
[352276941,1739025044836,-500.0,0.00011318,2]
[352276943,1739025044847,-500.0,0.00011318,2]
[352276945,1739025044856,-255.93100217,0.00011333,2]
[352276947,1739025044866,-500.0,0.00011369,2]
[352276949,1739025044876,-500.0,0.00011369,2]
[352276951,1739025044885,-500.0,0.00011369,2]
[352276953,1739025044894,-198.48339176,0.00011369,2]
[352276954,1739025044903,-500.0,0.00011369,2]
[352276956,1739025044912,-508.00484531,0.00011369,2]
[352276958,1739025044922,-334.99089184,0.00011369,2]
[352276960,1739025044931,-500.0,0.00011369,2]
[352276962,1739025044941,-500.0,0.00011369,2]
[352276964,1739025044950,-500.0,0.00011369,2]
[352276966,1739025044959,-564.85,0.00011369,2]
[352276968,1739025044968,-500.0,0.00011369,2]
[352276970,1739025044978,-500.0,0.00011369,2]
[352276971,1739025044987,-500.0,0.00011369,2]
[352276973,1739025044996,-500.0,0.00011369,2]
[352276975,1739025045005,-882.15,0.00011369,2]
[352276977,1739025045014,-305.16282016,0.00011369,2]
[352276979,1739025045024,-500.0,0.00011369,2]
[352276981,1739025045034,-500.0,0.00011369,2]
[352276983,1739025045043,-1223.87,0.00011369,2]
[352276985,1739025045052,-1236.7,0.00011369,2]
[352276987,1739025045061,-500.0,0.00011369,2]
[352276988,1739025045071,-732.76,0.00011369,2]
[352276990,1739025045080,-186.45,0.00011369,2]
[352276992,1739025045090,-551.6,0.00011369,2]
[352276994,1739025045100,-509.32,0.00011369,2]
[352276996,1739025045110,-500.0,0.00011369,2]
[352276998,1739025045120,-500.0,0.00011369,2]
[352277000,1739025045129,-631.51408497,0.00011369,2]
[352277002,1739025045138,-500.0,0.00011369,2]
[352277004,1739025045149,-500.0,0.00011369,2]
[352277006,1739025045158,-500.0,0.00011369,2]
[352277007,1739025045167,-500.0,0.00011369,2]
[352277009,1739025045177,-500.0,0.00011369,2]
[352277011,1739025045186,-500.0,0.00011369,2]
[352277013,1739025045196,-1069.95,0.00011369,2]
[352277015,1739025045205,-906.53,0.00011369,2]
[352277017,1739025045215,-500.0,0.00011369,2]
[352277019,1739025045224,-503.35,0.00011369,2]
[352277021,1739025045234,-500.0,0.00011369,2]
[352277023,1739025045243,-500.0,0.00011369,2]
[352277025,1739025045253,-1221.61,0.00011369,2]
[352277027,1739025045262,-500.0,0.00011369,2]
[352277029,1739025045272,-569.26,0.00011369,2]
[352277030,1739025045282,-855.56,0.00011369,2]
[352277032,1739025045291,-513.93161765,0.00011369,2]
[352277034,1739025045301,-779.43,0.00011369,2]
[352277036,1739025045310,-500.0,0.00011369,2]
[352277038,1739025045320,-500.0,0.00011369,2]
[352277040,1739025045329,-500.0,0.00011369,2]
[352277042,1739025045338,-500.0,0.00011369,2]
[352277044,1739025045348,-500.0,0.00011369,2]
[352277046,1739025045357,-986.53,0.00011369,2]
[352277047,1739025045367,-500.0,0.00011369,2]
[352277049,1739025045376,-500.0,0.00011369,2]
[352277051,1739025045385,-673.25,0.00011369,2]
[352277053,1739025045395,-500.0,0.00011369,2]
[352277055,1739025045406,-614.21,0.00011369,2]
[352277057,1739025045417,-500.0,0.00011369,2]
[352277059,1739025045426,-500.0,0.00011369,2]
[352277061,1739025045436,-185.95499664,0.00011369,2]
[352277063,1739025045445,-610.92,0.00011369,2]
[352277065,1739025045456,-500.0,0.00011369,2]
[352277067,1739025045465,-500.0,0.00011369,2]
[352277069,1739025045474,-500.0,0.00011369,2]
[352277071,1739025045485,-500.0,0.00011369,2]
[352277073,1739025045494,-500.0,0.00011369,2]
[352277075,1739025045503,-500.0,0.00011369,2]
[352277077,1739025045512,-500.0,0.00011369,2]
[352277078,1739025045522,-814.06,0.00011369,2]
[352277080,1739025045531,-1354.91,0.00011369,2]
[352277082,1739025045540,-457.57404294,0.00011369,2]
[352277084,1739025045549,-500.0,0.00011369,2]
[352277086,1739025045559,-1532.57,0.00011369,2]
[352277088,1739025045569,-731.55,0.00011369,2]
[352277090,1739025045578,-500.0,0.00011369,2]
[352277092,1739025045587,-590.00289293,0.00011369,2]
[352277094,1739025045596,-500.0,0.00011369,2]
[352277096,1739025045606,-500.0,0.00011369,2]
[352277098,1739025045615,-500.0,0.00011369,2]
[352277100,1739025045625,-500.0,0.00011369,2]
[352277102,1739025045634,-1220.11,0.00011369,2]
[352277104,1739025045644,-500.0,0.00011369,2]
[352277106,1739025045653,-3454.43,0.00011369,2]
[352277107,1739025045662,-4525.22,0.00011369,2]
[352277109,1739025045672,-508.39,0.00011369,2]
[352277111,1739025045681,-500.0,0.00011369,2]
[352277113,1739025045691,-1690.82,0.00011369,2]
[352277115,1739025045701,-500.0,0.00011369,2]
[352277117,1739025045710,-500.0,0.00011369,2]
[352277119,1739025045720,-1067.09,0.00011369,2]
[352277121,1739025045729,-1190.94,0.00011369,2]
[352277123,1739025045740,-12605.54,0.00011369,2]
[352277125,1739025045750,-677.5,0.00011369,2]
[352277127,1739025045759,-500.0,0.00011369,2]
[352277129,1739025045768,-38120.67,0.00011369,2]
[352277131,1739025045778,-500.0,0.00011369,2]
[352277133,1739025045787,-1348.17,0.00011369,2]
[352277135,1739025045797,-1051.02,0.00011369,2]
[352277137,1739025045806,-296.55201813,0.00011369,2]
[352277138,1739025045815,-500.0,0.00011369,2]
[352277140,1739025045826,-1553.35,0.00011369,2]
[352277142,1739025045835,-500.0,0.00011369,2]
[352277144,1739025045847,-1397.34,0.00011369,2]
[352277146,1739025045857,-935.31,0.00011369,2]
[352277148,1739025045866,-500.0,0.00011369,2]
[352277150,1739025045876,-500.0,0.00011369,2]
[352277152,1739025045886,-500.0,0.00011369,2]
[352277154,1739025045895,-500.0,0.00011369,2]
[352277156,1739025045904,-533.66,0.00011369,2]
[352277158,1739025045914,-1428.13,0.00011369,2]
[352277160,1739025045923,-500.0,0.00011369,2]
[352277162,1739025045937,-500.0,0.00011369,2]
[352277163,1739025045951,-500.0,0.00011369,2]
[352277165,1739025045961,-3062.45,0.00011369,2]
[352277167,1739025045970,-2836.25,0.00011369,2]
[352277169,1739025045979,-6887.2,0.00011369,2]
[352277171,1739025045991,-500.0,0.00011369,2]
[352277173,1739025046000,-680.74,0.00011369,2]
[352277175,1739025046010,-1174.97,0.00011369,2]
[352277177,1739025046019,-1417.66,0.00011369,2]
[352277179,1739025046030,-2830.77,0.00011369,2]
[352277181,1739025046039,-1011.7,0.00011369,2]
[352277183,1739025046049,-500.0,0.00011369,2]
[352277185,1739025046058,-895.1,0.00011369,2]
[352277186,1739025046067,-500.0,0.00011369,2]
[352277188,1739025046077,-4151.37,0.00011369,2]
[352277190,1739025046086,-500.0,0.00011369,2]
[352277192,1739025046096,-564.18,0.00011369,2]
[352277194,1739025046106,-500.0,0.00011369,2]
[352277196,1739025046115,-500.0,0.00011369,2]
[352277198,1739025046125,-555.22,0.00011369,2]
[352277200,1739025046135,-500.0,0.00011369,2]
[352277202,1739025046144,-462.27252829,0.00011369,2]
[352277204,1739025046153,-500.0,0.00011369,2]
[352277205,1739025046162,-1203.67,0.00011369,2]
[352277206,1739025046172,-500.0,0.00011369,2]
[352277207,1739025046182,-765.9,0.00011369,2]
[352277208,1739025046191,-653.59,0.00011369,2]
[352277209,1739025046201,-500.0,0.00011369,2]
[352277210,1739025046210,-1366.67,0.00011369,2]
[352277211,1739025046220,-14839.54,0.00011369,2]
[352277212,1739025046230,-1359.07,0.00011369,2]
[352277213,1739025046239,-500.0,0.00011369,2]
[352277214,1739025046250,-500.0,0.00011369,2]
[352277215,1739025046260,-672.65,0.00011369,2]
[352277216,1739025046269,-500.0,0.00011369,2]
[352277217,1739025046278,-614.27,0.00011369,2]
[352277218,1739025046287,-2827.57,0.00011369,2]
[352277219,1739025046296,-2885.15,0.00011369,2]
[352277220,1739025046306,-500.0,0.00011369,2]
[352277221,1739025046315,-872.72,0.00011369,2]
[352277222,1739025046324,-1027.41,0.00011369,2]
[352277223,1739025046333,-4038.53,0.00011369,2]
[352277224,1739025046343,-500.0,0.00011369,2]
[352277225,1739025046353,-151.0,0.000114,2]
[352277226,1739025046362,-154.597,0.0001145,2]
[352277227,1739025046372,-481.86155144,0.0001149,2]
[352277228,1739025046382,-151.0,0.000115,2]
[352277229,1739025046391,-165.546628,0.00011506,2]
[352277230,1739025046402,-165.546628,0.00011506,2]
[352277231,1739025046414,-165.212687,0.00011506,2]
[352277232,1739025046424,-165.212687,0.00011506,2]
[352277233,1739025046433,-500.0,0.00011506,2]
[352277234,1739025046443,-500.0,0.00011506,2]
[352277235,1739025046453,-500.0,0.00011506,2]
[352277236,1739025046462,-500.0,0.00011506,2]
[352277237,1739025046471,-500.0,0.00011506,2]
[352277238,1739025046481,-336.46454306,0.00011506,2]
[352277239,1739025046491,-500.0,0.00011506,2]
[352277240,1739025046501,-564.85,0.00011506,2]
[352277241,1739025046510,-500.0,0.00011506,2]
[352277243,1739025046519,-500.0,0.00011506,2]
[352277258,1739025046670,-500.0,0.00011506,2]
[352277259,1739025046680,-882.15,0.00011506,2]
[352277261,1739025046690,-500.0,0.00011506,2]
[352277263,1739025046699,-500.0,0.00011506,2]
[352277266,1739025046709,-1223.87,0.00011506,2]
[352277268,1739025046718,-1236.7,0.00011506,2]
[352277270,1739025046727,-732.76,0.00011506,2]
[352277271,1739025046736,-551.6,0.00011506,2]
[352277274,1739025046746,-509.32,0.00011506,2]
[352277276,1739025046755,-500.0,0.00011506,2]
[352277278,1739025046764,-500.0,0.00011506,2]
[352277280,1739025046774,-500.0,0.00011506,2]
[352277282,1739025046783,-500.0,0.00011506,2]
[352277284,1739025046792,-500.0,0.00011506,2]
[352277286,1739025046801,-500.0,0.00011506,2]
[352277288,1739025046811,-1069.95,0.00011506,2]
[352277290,1739025046820,-906.53,0.00011506,2]
[352277292,1739025046829,-500.0,0.00011506,2]
[352277294,1739025046839,-500.0,0.00011506,2]
[352277296,1739025046847,-500.0,0.00011506,2]
[352277298,1739025046857,-1221.61,0.00011506,2]
[352277299,1739025046866,-500.0,0.00011506,2]
[352277302,1739025046875,-569.26,0.00011506,2]
[352277304,1739025046884,-855.56,0.00011506,2]
[352277305,1739025046894,-779.43,0.00011506,2]
[352277307,1739025046903,-500.0,0.00011506,2]
[352277310,1739025046913,-500.0,0.00011506,2]
[352277311,1739025046923,-500.0,0.00011506,2]
[352277313,1739025046932,-500.0,0.00011506,2]
[352277316,1739025046942,-986.53,0.00011506,2]
[352277317,1739025046951,-500.0,0.00011506,2]
[352277319,1739025046961,-500.0,0.00011506,2]
[352277321,1739025046970,-673.25,0.00011506,2]
[352277324,1739025046979,-500.0,0.00011506,2]
[352277325,1739025046988,-614.21,0.00011506,2]
[352277328,1739025046998,-500.0,0.00011506,2]
[352277330,1739025047007,-273.1439735,0.00011506,2]
[352277351,1739025047201,-226.8560265,0.00011506,2]
[352277353,1739025047212,-610.92,0.00011506,2]
[352277355,1739025047221,-500.0,0.00011506,2]
[352277357,1739025047231,-500.0,0.00011506,2]
[352277359,1739025047241,-500.0,0.00011506,2]
[352277361,1739025047251,-385.0128845,0.00011506,2]
[352277379,1739025047420,-114.9871155,0.00011506,2]
[352277381,1739025047430,-500.0,0.00011506,2]
[352277383,1739025047440,-500.0,0.00011506,2]
[352277385,1739025047451,-500.0,0.00011506,2]
[352277387,1739025047461,-814.06,0.00011506,2]
[352277389,1739025047471,-1354.91,0.00011506,2]
[352277391,1739025047481,-1532.57,0.00011506,2]
[352277393,1739025047491,-731.55,0.00011506,2]
[352277395,1739025047501,-500.0,0.00011506,2]
[352277396,1739025047509,-500.0,0.00011506,2]
[352277398,1739025047519,-500.0,0.00011506,2]
[352277400,1739025047528,-500.0,0.00011506,2]
[352277402,1739025047536,-500.0,0.00011506,2]
[352277404,1739025047545,-1220.11,0.00011506,2]
[352277406,1739025047554,-500.0,0.00011506,2]
[352277408,1739025047564,-3454.43,0.00011506,2]
[352277410,1739025047573,-4525.22,0.00011506,2]
[352277412,1739025047582,-508.39,0.00011506,2]
[352277414,1739025047592,-500.0,0.00011506,2]
[352277416,1739025047602,-1690.82,0.00011506,2]
[352277418,1739025047612,-500.0,0.00011506,2]
[352277420,1739025047621,-500.0,0.00011506,2]
[352277422,1739025047630,-1067.09,0.00011506,2]
[352277424,1739025047638,-1190.94,0.00011506,2]
[352277426,1739025047647,-12605.54,0.00011506,2]
[352277428,1739025047657,-677.5,0.00011506,2]
[352277430,1739025047666,-500.0,0.00011506,2]
[352277432,1739025047676,-4079.77135926,0.00011506,2]
[352277434,1739025047693,-34040.89864074,0.00011506,2]
[352277436,1739025047703,-245.81185511,0.00011506,2]
[352277439,1739025047713,-1348.17,0.00011506,2]
[352277441,1739025047725,-1051.02,0.00011506,2]
[352277443,1739025047734,-500.0,0.00011506,2]
[352277445,1739025047743,-1553.35,0.00011506,2]
[352277447,1739025047752,-500.0,0.00011506,2]
[352277449,1739025047762,-1397.34,0.00011506,2]
[352277451,1739025047771,-935.31,0.00011506,2]
[352277453,1739025047782,-500.0,0.00011506,2]
[352277455,1739025047792,-500.0,0.00011506,2]
[352277457,1739025047802,-500.0,0.00011506,2]
[352277459,1739025047811,-1428.13,0.00011506,2]
[352277461,1739025047820,-500.0,0.00011506,2]
[352277463,1739025047830,-500.0,0.00011506,2]
[352277465,1739025047841,-500.0,0.00011506,2]
[352277467,1739025047851,-3062.45,0.00011506,2]
[352277469,1739025047861,-2836.25,0.00011506,2]
[352277471,1739025047871,-6887.2,0.00011506,2]
[352277473,1739025047881,-500.0,0.00011506,2]
[352277475,1739025047890,-680.74,0.00011506,2]
[352277477,1739025047900,-1174.97,0.00011506,2]
[352277479,1739025047911,-1417.66,0.00011506,2]
[352277481,1739025047921,-2830.77,0.00011506,2]
[352277483,1739025047931,-1011.7,0.00011506,2]
[352277485,1739025047940,-895.1,0.00011506,2]
[352277487,1739025047949,-500.0,0.00011506,2]
[352277489,1739025047959,-4151.37,0.00011506,2]
[352277491,1739025047968,-500.0,0.00011506,2]
[352277493,1739025047977,-564.18,0.00011506,2]
[352277495,1739025047988,-500.0,0.00011506,2]
[352277497,1739025047998,-500.0,0.00011506,2]
[352277499,1739025048008,-555.22,0.00011506,2]
[352277501,1739025048018,-500.0,0.00011506,2]
[352277503,1739025048029,-500.0,0.00011506,2]
[352277505,1739025048040,-1203.67,0.00011506,2]
[352277507,1739025048050,-500.0,0.00011506,2]
[352277509,1739025048060,-765.9,0.00011506,2]
[352277511,1739025048070,-653.59,0.00011506,2]
[352277513,1739025048080,-500.0,0.00011506,2]
[352277515,1739025048091,-1366.67,0.00011506,2]
[352277517,1739025048101,-14839.54,0.00011506,2]
[352277520,1739025048111,-1359.07,0.00011506,2]
[352277522,1739025048122,-425.10350412,0.00011506,2]
[352277524,1739025048132,-500.0,0.00011506,2]
[352277526,1739025048141,-500.0,0.00011506,2]
[352277527,1739025048150,-614.27,0.00011506,2]
[352277529,1739025048160,-672.65,0.00011506,2]
[352277531,1739025048170,-2827.57,0.00011506,2]
[352277534,1739025048181,-2885.15,0.00011506,2]
[352277536,1739025048192,-500.0,0.00011506,2]
[352277538,1739025048202,-872.72,0.00011506,2]
[352277540,1739025048212,-1027.41,0.00011506,2]
[352277542,1739025048223,-4038.53,0.00011506,2]
[352277544,1739025048234,-500.0,0.00011506,2]
[352277546,1739025048244,-1000.0,0.00011521,2]
[352277548,1739025048257,-4595.73609205,0.00011543,2]
[352277550,1739025048267,-685.657,0.00011563,2]
[352277552,1739025048277,-1000.0,0.00011578,2]
[352277554,1739025048288,-151.0,0.000116,2]
[352277556,1739025048298,-151.0,0.000116,2]
[352277558,1739025048308,-197.396113,0.00011643,2]
[352277560,1739025048318,-197.396113,0.00011643,2]
[352277561,1739025048328,-165.546628,0.00011643,2]
[352277564,1739025048339,-165.546628,0.00011643,2]
[352277565,1739025048349,-165.212687,0.00011643,2]
[352277568,1739025048359,-165.212687,0.00011643,2]
[352277570,1739025048370,-500.0,0.00011643,2]
[352277571,1739025048380,-500.0,0.00011643,2]
[352277573,1739025048390,-318.569876,0.00011643,2]
[352277575,1739025048403,-318.569876,0.00011643,2]
[352277577,1739025048415,-500.0,0.00011643,2]
[352277580,1739025048427,-447.28,0.00011643,2]
[352277581,1739025048437,-564.85,0.00011643,2]
[352277583,1739025048450,-500.0,0.00011643,2]
[352277585,1739025048460,-882.15,0.00011643,2]
[352277587,1739025048471,-500.0,0.00011643,2]
[352277589,1739025048483,-500.0,0.00011643,2]
[352277591,1739025048493,-1223.87,0.00011643,2]
[352277593,1739025048504,-1236.7,0.00011643,2]
[352277595,1739025048515,-732.76,0.00011643,2]
[352277597,1739025048525,-551.6,0.00011643,2]
[352277599,1739025048537,-509.32,0.00011643,2]
[352277602,1739025048548,-500.0,0.00011643,2]
[352277604,1739025048558,-500.0,0.00011643,2]
[352277605,1739025048567,-500.0,0.00011643,2]
[352277607,1739025048578,-500.0,0.00011643,2]
[352277610,1739025048588,-500.0,0.00011643,2]
[352277612,1739025048598,-500.0,0.00011643,2]
[352277614,1739025048609,-1069.95,0.00011643,2]
[352277616,1739025048619,-906.53,0.00011643,2]
[352277618,1739025048629,-500.0,0.00011643,2]
[352277620,1739025048639,-500.0,0.00011643,2]
[352277622,1739025048650,-500.0,0.00011643,2]
[352277624,1739025048661,-1221.61,0.00011643,2]
[352277626,1739025048671,-569.26,0.00011643,2]
[352277628,1739025048680,-855.56,0.00011643,2]
[352277630,1739025048691,-779.43,0.00011643,2]
[352277632,1739025048700,-500.0,0.00011643,2]
[352277634,1739025048710,-500.0,0.00011643,2]
[352277636,1739025048720,-500.0,0.00011643,2]
[352277638,1739025048730,-500.0,0.00011643,2]
[352277640,1739025048741,-986.53,0.00011643,2]
[352277642,1739025048751,-500.0,0.00011643,2]
[352277643,1739025048760,-500.0,0.00011643,2]
[352277646,1739025048771,-673.25,0.00011643,2]
[352277647,1739025048781,-500.0,0.00011643,2]
[352277649,1739025048792,-614.21,0.00011643,2]
[352277651,1739025048801,-500.0,0.00011643,2]
[352277653,1739025048811,-500.0,0.00011643,2]
[352277655,1739025048822,-945.09266,0.00011643,2]
[352277657,1739025048831,-945.09266,0.00011643,2]
[352277660,1739025048842,-610.92,0.00011643,2]
[352277662,1739025048852,-500.0,0.00011643,2]
[352277663,1739025048861,-500.0,0.00011643,2]
[352277665,1739025048872,-151.0,0.00011643,2]
[352277667,1739025048881,-151.0,0.00011643,2]
[352277669,1739025048892,-151.0,0.00011643,2]
[352277671,1739025048901,-500.0,0.00011643,2]
[352277673,1739025048912,-500.0,0.00011643,2]
[352277675,1739025048922,-500.0,0.00011643,2]
[352277677,1739025048933,-500.0,0.00011643,2]
[352277679,1739025048944,-500.0,0.00011643,2]
[352277681,1739025048953,-791.52373574,0.00011643,2]
[352277692,1739025049051,-22.53626426,0.00011643,2]
[352277694,1739025049061,-520.29235074,0.00011643,2]
[352277696,1739025049078,-834.61764926,0.00011643,2]
[352277698,1739025049089,-1532.57,0.00011643,2]
[352277700,1739025049098,-731.55,0.00011643,2]
[352277702,1739025049107,-500.0,0.00011643,2]
[352277704,1739025049117,-500.0,0.00011643,2]
[352277706,1739025049126,-500.0,0.00011643,2]
[352277708,1739025049136,-500.0,0.00011643,2]
[352277710,1739025049145,-500.0,0.00011643,2]
[352277712,1739025049154,-1220.11,0.00011643,2]
[352277714,1739025049164,-500.0,0.00011643,2]
[352277716,1739025049174,-2287.85468799,0.00011643,2]
[352278429,1739025433145,200.0,0.00019,120]
[352278458,1739026232362,-151.0,0.00010951,2]
[352278459,1739026232371,-300.0,0.00010956,2]
[352278460,1739026232381,-500.0,0.00010957,2]
[352278461,1739026232391,-164.15450982,0.00010957,2]
[352278462,1739026232400,-500.0,0.00010957,2]
[352278464,1739026232409,-500.0,0.00010957,2]
[352278466,1739026232423,-249.99999999,0.00010957,2]
[352278468,1739026232432,-500.0,0.00010957,2]
[352278470,1739026232441,-500.0,0.00010957,2]
[352278472,1739026232451,-500.0,0.00010957,2]
[352278473,1739026232460,-501.8976617,0.00010957,2]
[352278474,1739026232469,-500.0,0.00010957,2]
[352278475,1739026232479,-500.0,0.00010957,2]
[352278476,1739026232488,-500.0,0.00010957,2]
[352278477,1739026232498,-500.0,0.00010957,2]
[352278478,1739026232507,-500.0,0.00010957,2]
[352278479,1739026232516,-500.0,0.00010957,2]
[352278480,1739026232526,-500.0,0.00010957,2]
[352278481,1739026232535,-500.0,0.00010957,2]
[352278482,1739026232543,-500.0,0.00010957,2]
[352278483,1739026232553,-381.58109589,0.00010957,2]
[352278484,1739026232562,-500.0,0.00010957,2]
[352278485,1739026232571,-500.0,0.00010957,2]
[352278486,1739026232580,-500.0,0.00010957,2]
[352278487,1739026232589,-500.0,0.00010957,2]
[352278488,1739026232599,-304.49021552,0.00010957,2]
[352278489,1739026232609,-500.0,0.00010957,2]
[352278490,1739026232618,-500.0,0.00010957,2]
[352278491,1739026232627,-500.0,0.00010957,2]
[352278492,1739026232637,-500.0,0.00010957,2]
[352278493,1739026232646,-500.0,0.00010957,2]
[352278494,1739026232655,-500.0,0.00010957,2]
[352278495,1739026232668,-500.0,0.00010957,2]
[352278496,1739026232678,-500.0,0.00010957,2]
[352278497,1739026232687,-426.23427291,0.00010957,2]
[352278498,1739026232696,-500.0,0.00010957,2]
[352278499,1739026232706,-463.55965631,0.00010957,2]
[352278500,1739026232715,-200.49891283,0.00010957,2]
[352278501,1739026232725,-500.0,0.00010957,2]
[352278502,1739026232734,-278.99472816,0.00010958,2]
[352278503,1739026232744,-500.0,0.00010958,2]
[352278504,1739026232753,-500.0,0.00010958,2]
[352278505,1739026232763,-500.0,0.00010958,2]
[352278506,1739026232774,-500.0,0.00010958,2]
[352278507,1739026232787,-500.0,0.00010958,2]
[352278508,1739026232797,-252.43782814,0.00010958,2]
[352278509,1739026232807,-500.0,0.00010958,2]
[352278510,1739026232816,-500.0,0.00010958,2]
[352278511,1739026232825,-500.0,0.00010958,2]
[352278512,1739026232834,-500.0,0.00010958,2]
[352278513,1739026232844,-500.0,0.00010958,2]
[352278514,1739026232855,-500.0,0.00010958,2]
[352278515,1739026232865,-500.0,0.00010958,2]
[352278516,1739026232874,-500.0,0.00010958,2]
[352278517,1739026232884,-500.0,0.00010958,2]
[352278518,1739026232893,-500.0,0.00010958,2]
[352278519,1739026232902,-500.0,0.00010958,2]
[352278520,1739026232911,-500.0,0.00010958,2]
[352278521,1739026232924,-500.0,0.00010958,2]
[352278522,1739026232933,-217.36080263,0.00010958,2]
[352278523,1739026232943,-500.0,0.00010958,2]
[352278524,1739026232953,-500.0,0.00010958,2]
[352278525,1739026232962,-500.0,0.00010958,2]
[352278526,1739026232972,-500.0,0.00010958,2]
[352278527,1739026232981,-500.0,0.00010958,2]
[352278528,1739026232990,-500.0,0.00010958,2]
[352278529,1739026232999,-500.0,0.00010958,2]
[352278530,1739026233008,-500.0,0.00010958,2]
[352278531,1739026233018,-500.0,0.00010958,2]
[352278532,1739026233027,-500.0,0.00010958,2]
[352278533,1739026233036,-500.0,0.00010958,2]
[352278534,1739026233045,-500.0,0.00010958,2]
[352278535,1739026233055,-500.0,0.00010958,2]
[352278536,1739026233064,-500.0,0.00010958,2]
[352278537,1739026233074,-500.0,0.00010958,2]
[352278538,1739026233083,-500.0,0.00010958,2]
[352278539,1739026233092,-714.47,0.00010958,2]
[352278540,1739026233102,-500.0,0.00010958,2]
[352278541,1739026233111,-500.0,0.00010958,2]
[352278542,1739026233121,-604.21647467,0.00010958,2]
[352278543,1739026233130,-500.0,0.00010958,2]
[352278544,1739026233139,-609.26487491,0.00010958,2]
[352278545,1739026233148,-500.0,0.00010958,2]
[352278546,1739026233157,-584.16711782,0.00010958,2]
[352278547,1739026233170,-390.85512548,0.00010958,2]